[Event "67th Mexican-ch Open 2022"]
[Site "Chihuahua"]
[Date "2022.04.15"]
[Round "5.18"]
[White "Montes Orozco, Miguel Angel"]
[Black "Capo Vidal, Uriel"]
[Result "1-0"]
[ECO "D31"]
[WhiteElo "1914"]
[BlackElo "2306"]
[Annotator "TA"]
[PlyCount "69"]
[EventDate "2022.04.12"]
[EventType "swiss"]
[EventCountry "MEX"]
[SourceTitle "playchess.com"]
[Source "ChessBase"]
[SourceQuality "1"]
[TimeControl "5400+30"]

{[%evp 15,69,0,0,-73,138,107,111,123,100,91,86,76,105,94,105,95,129,117,275,270,275,265,268,265,278,249,281,294,316,296,485,482,456,472,443,422,473,470,635,428,637,642,977,961,896,868,1593,1552,29990,29991,29991,29992,29997,29998,29998,29999]} 1. d4 {[%emt 0:01:59]} d5 {[%emt 0:08:59]} 2. c4 {[%emt 0:00:16]} e6 {[%emt 0:00:12]} 3. Nc3 {[%emt 0:00:20]} c6 {[%emt 0:01:01]} 4. e4 {[%emt 0:02:35]} dxe4 {[%emt 0:01:45]} 5. Nxe4 {[%emt 0:00:31]} Bb4+ {[%emt 0:00:08]} 6. Bd2 {[%emt 0:00:05]} Qxd4 {[%emt 0:00:09]} 7. Bxb4 {[%emt 0:00:06]} Qxe4+ {[%emt 0:00:10]} 8. Be2 {[%emt 0:00:11]} Na6 {[%emt 0:01:28]} 9. Ba3 {[%emt 0:03:21] D31: Queen's Gambit Declined: Semi-Slav without ...Nf6 (+ Marshall Gambit and Noteboom) and Exchange Variation lines without ...Nf6.} (9. Ba5 $11 {keeps the balance.} Bd7 10. Nf3) 9... Qxg2 $2 {[%emt 0:03:22] [#]} (9... Bd7 $17 {stays on course.}) 10. Qd6 $1 {[%emt 0:01:34][%cal Oa1d1][%mdl 512] White threatens Rd1! and mate.} c5 {[%emt 0:01:01]} (10... Qxh1 11. Rd1 $1) 11. Bf3 {[%emt 0:02:58] White is better.} Qg5 {[%emt 0:00:03] [#]} 12. Bc6+ $1 $40 {[%emt 0:01:14][%mdl 128] Black is in trouble.} bxc6 {[%emt 0:00:08]} 13. Qxc6+ {[%emt 0:00:14]} Ke7 {[%emt 0:01:12] aiming for ...Rb8.} 14. Qxa8 {[%emt 0:01:25]} ({Of course not} 14. Nf3 $6 Qf4 15. Rd1 (15. Qxa8 Qc7 $11) 15... Rb8 $11) 14... Qe5+ {[%emt 0:00:13]} 15. Ne2 {[%emt 0:09:00]} Qc7 {[%emt 0:02:41] [#] ...Bb7 is the strong threat.} 16. Qg2 {[%emt 0:02:29] [#]} Bb7 $146 {[%emt 0:03:42] [#] This costs Black the game.} (16... Nf6 $16 {might work better.}) ({Predecessor:} 16... Nf6 17. Qg3 e5 18. O-O-O Be6 19. Nc3 Kf8 20. Rhe1 Nd7 21. Nd5 Qb7 22. Rxe5 Nxe5 23. Qxe5 h5 24. Nf4 Rh6 25. Rd8+ Ke7 26. Qf6+ Kxf6 27. Nxe6 {1-0 (27) Bolduc,S (2259)-Lesiege,A (2513) Montreal 2004}) 17. Qxg7 $1 $18 {[%emt 0:11:03]} Bxh1 {[%emt 0:00:10]} (17... Nf6 18. Qxh8) 18. Qxh8 {[%emt 0:00:07]} Nf6 {[%emt 0:00:11]} 19. Rd1 {[%emt 0:00:20]} Bf3 {[%emt 0:07:31]} 20. Rd2 {[%emt 0:04:02]} Bg4 {[%emt 0:11:27]} 21. Qa8 {[%emt 0:05:58]} Nd7 {[%emt 0:01:07]} 22. f3 {[%emt 0:13:37]} Bf5 {[%emt 0:02:34]} (22... Bh5 23. Nd4 Nab8) 23. Nd4 {[%emt 0:01:03]} Bg6 {[%emt 0:11:59]} 24. Nc6+ {[%emt 0:06:57]} Kf6 {[%emt 0:00:09]} 25. b3 {[%emt 0:00:10] Qh8+ would kill now.} Kg7 {[%emt 0:03:28] Inhibits Qh8+.} 26. Bb2+ {[%emt 0:00:56]} Kh6 {[%emt 0:01:03]} 27. Qd8 {[%emt 0:13:38]} Qf4 {[%emt 0:00:16] Against Qh4+} (27... Qxd8 $142 28. Nxd8 Ndb8) 28. Qxd7 {[%emt 0:01:42]} ({Worse is} 28. Rxd7 Qe3+ 29. Kf1 Qxf3+ 30. Kg1 Qe3+ 31. Kf1 Qf3+ 32. Kg1 Qe3+ 33. Kf1 Qf3+ $11) 28... Qe3+ {[%emt 0:00:08]} 29. Re2 {[%emt 0:00:17]} Qg1+ {[%emt 0:00:06]} 30. Kd2 {[%emt 0:00:14] Hoping for Bf6.} Qb1 {[%emt 0:05:10]} 31. Bf6 {[%emt 0:00:54]} Bc2 {[%emt 0:03:32]} 32. Qxf7 {[%emt 0:03:12] White mates.} Qd1+ {[%emt 0:00:11]} 33. Kc3 {[%emt 0:00:19]} Bg6 {[%emt 0:02:39]} 34. Qg7+ {[%emt 0:00:33]} Kh5 {[%emt 0:00:02]} 35. Re5+ {[%emt 0:00:43] Weighted Error Value: White=0.18 (very precise) /Black=0.87} 1-0

[Event "67th Mexican-ch Open 2022"]
[Site "Chihuahua"]
[Date "2022.04.15"]
[Round "5.19"]
[White "Flores Teillery, Alejandro Francisco "]
[Black "Blanco Fernandez, Alvaro"]
[Result "0-1"]
[ECO "A10"]
[WhiteElo "1879"]
[BlackElo "2216"]
[Annotator "TA"]
[PlyCount "127"]
[EventDate "2022.04.12"]
[EventType "swiss"]
[EventCountry "MEX"]
[SourceTitle "playchess.com"]
[Source "ChessBase"]
[SourceQuality "1"]
[TimeControl "5400+30"]

{[%evp 11,127,48,52,15,29,28,30,27,25,29,40,41,38,0,0,-23,0,-36,0,0,0,-43,0,0,17,10,26,24,16,-28,17,17,0,29,35,-31,-14,-83,-70,-96,-130,-166,-156,-247,-137,-283,-290,-278,-262,-272,-222,-231,-222,-296,-302,-527,-527,-527,-527,-448,-519,-501,-489,-963,-977,-1133,0,0,0,0,0,-7,0,0,0,-58,0,-149,-148,-487,-404,-1298,-1339,-1391,-1286,-5537,-4470,-1171,-583,-510,-541,-29971,0,-902,-645,-1045,-1165,-5402,-11218,-6191,-4132,-5285,-1242,-29979,-29980,-29979,-29979,-29985,-29983,-29983,-29980,-29980,-29981,-29987,-29988,-29992,-29993,-29993]} 1. c4 {[%emt 0:00:02]} b6 {[%emt 0:03:39]} 2. Nf3 {[%emt 0:02:35]} Bb7 {[%emt 0:00:09]} 3. g3 {[%emt 0:00:10]} Bxf3 {[%emt 0:00:21]} 4. exf3 {[%emt 0:00:07]} c5 {[%emt 0:00:20]} 5. d4 {[%emt 0:01:05]} cxd4 {[%emt 0:00:25]} 6. Qxd4 {[%emt 0:00:06]} Nc6 {[%emt 0:00:09]} 7. Qd1 {[%emt 0:00:17] A10: English Opening: Unusual Replies for Black.} g6 {[%emt 0:00:13]} 8. Bg2 {[%emt 0:02:54]} Bg7 {[%emt 0:00:07]} 9. O-O {[%emt 0:00:08] White has an edge.} Rc8 {[%emt 0:00:15]} 10. Na3 {[%emt 0:02:45]} Nf6 {[%emt 0:00:48] [#]} 11. Be3 $146 {[%emt 0:00:33]} ({Predecessor:} 11. Nb5 O-O 12. f4 a6 13. Na3 Ne8 14. Qe2 Nd6 15. Be3 Nf5 16. Rad1 d6 17. b3 {½-½ (40) Shen,C (2200)-Yang,K (2016) Philadelphia 2017}) 11... O-O {[%emt 0:00:10]} 12. Rc1 {[%emt 0:00:07]} d5 {[%emt 0:01:15]} 13. Qd2 {[%emt 0:02:07]} d4 {[%emt 0:03:30]} 14. Bh6 {[%emt 0:00:10]} e5 {[%emt 0:03:57]} 15. Bxg7 {[%emt 0:00:07]} Kxg7 {[%emt 0:00:01]} 16. Rfe1 {[%emt 0:00:38]} Re8 {[%emt 0:00:03]} 17. c5 {[%emt 0:04:30]} Qd5 {[%emt 0:04:02][%csl LRa2,LRc5]} 18. cxb6 {[%emt 0:01:26]} axb6 {[%emt 0:00:01]} 19. Nc4 {[%emt 0:00:22]} Rb8 {[%emt 0:01:44]} 20. Ne3 {[%emt 0:04:37]} Qe6 {[%emt 0:07:49]} 21. Ng4 {[%emt 0:03:31]} Nxg4 {[%emt 0:01:01]} 22. fxg4 {[%emt 0:00:04]} Na5 {[%emt 0:00:08]} 23. b4 {[%emt 0:09:24]} (23. b3 $14) 23... Nc4 $15 {[%emt 0:00:50]} 24. Qd3 {[%emt 0:00:12]} (24. Qe2 $11 {remains equal.} b5 25. Be4) 24... b5 $36 {[%emt 0:00:34][%mdl 2048] Black is pushing.} 25. a4 {[%emt 0:00:09]} Nb2 {[%emt 0:02:02]} ({Much less strong is} 25... Qxg4 26. axb5 Nd6 27. Rc5 $14) 26. Qe2 {[%emt 0:04:34]} Nxa4 {[%emt 0:01:41]} 27. Rc6 {[%emt 1:01:20]} (27. f4 $17) 27... Nc3 {[%emt 0:00:47]} 28. Qf3 {[%emt 0:00:00]} (28. Qd3 $17 Qxg4 29. f4) 28... Qe7 $19 {[%emt 0:00:12]} 29. Rc5 {[%emt 0:00:00]} e4 {[%emt 0:02:05]} 30. Qf4 {[%emt 0:00:00]} Rbd8 {[%emt 0:00:19]} 31. g5 {[%emt 0:00:00]} Qd6 {[%emt 0:05:18]} 32. Qd2 {[%emt 0:00:00]} Re5 {[%emt 0:00:42]} 33. h4 $2 {[%emt 0:00:00]} (33. Rxe5 {is a better defense.} Qxe5 34. Bxe4 Nxe4 35. Qd3 Nxf2 36. Kxf2 Qxg5 37. Kg2) 33... Rxc5 {[%emt 0:08:25]} 34. bxc5 {[%emt 0:00:00]} Qxc5 {[%emt 0:03:45]} 35. Bxe4 {[%emt 0:00:00]} Nxe4 {[%emt 0:00:54]} 36. Rxe4 {[%emt 0:00:00][%mdl 4096] Endgame KQR-KQR} d3 {[%emt 0:00:57]} 37. Qb2+ {[%emt 0:00:00]} (37. Qa5 $142 Qd5 38. Re1) 37... Kg8 {[%emt 0:00:26] Active counter play!} 38. Qf6 {[%emt 0:00:00]} Qf8 $2 {[%emt 0:05:31]} (38... Qd5 $19 {( -> ...d2)} 39. Re1 d2) 39. Rd4 $11 {[%emt 0:00:00]} Rxd4 {[%emt 0:00:05]} 40. Qxd4 {[%emt 0:00:00] KQ-KQ} b4 {[%emt 0:00:13]} 41. Qxd3 {[%emt 0:00:00]} Qb8 {[%emt 0:00:12] ...b3 is the strong threat.} 42. Qb3 {[%emt 0:00:00]} Qb5 {[%emt 0:00:04]} 43. Qb2 {[%emt 0:00:00]} (43. f3 $11) 43... Qc4 {[%emt 0:01:19]} ({Black should play} 43... b3 $15) 44. h5 {[%emt 0:00:00] Black keeps a firm grip on the game.} (44. Qd2 $11) 44... Qc3 {[%emt 0:01:04]} 45. Qb1 {[%emt 0:00:00][%mdl 8192]} (45. Qa2 $17 {was the crucial defense.} gxh5 46. Qa5) 45... gxh5 {[%emt 0:01:34] And now ...b3 would win.} 46. Qd1 {[%emt 0:00:00]} (46. Qa2 $142 b3 47. Qa3) 46... b3 $19 {[%emt 0:00:21][%cal Bb4b3,Bb3b2][%mdl 32] Threatens to win with ...b2.} 47. Kh2 {[%emt 0:00:00]} b2 {[%emt 0:01:14][%cal Oh5h4]} 48. Qd8+ {[%emt 0:00:00]} Kg7 {[%emt 0:00:06]} 49. Qb6 {[%emt 0:00:00]} Qd2 {[%emt 0:14:37]} (49... Qe5 $142 {Strongly threatening ...h4.} 50. Qb3 h4) 50. Qf6+ {[%emt 0:00:00]} Kg8 {[%emt 0:00:27]} 51. Qf5 {[%emt 0:00:00]} Kf8 {[%emt 0:03:46]} (51... Qe1 $142 52. Qc8+ Kg7 53. Qf5 b1=Q 54. Qf6+ Kf8 55. Qh8+ Ke7 56. Qf6+ Kd7 57. Qd4+ Kc6 58. Qa4+ Kc7 59. Qc4+ Kb8 60. Qf4+ Kb7 61. Qf3+ Kb6 62. Qg2 Qb2 63. Qg1 Qbxf2+ 64. Qxf2+ Qxf2+ 65. Kh1 Qxg3 66. g6 h4 67. g7 h3 68. g8=Q Qxg8 69. Kh2 Qg2#) 52. Qc5+ $1 {[%emt 0:00:00] [#]} Ke8 $1 {[%emt 0:00:18]} 53. Qe5+ {[%emt 0:00:00]} Kd7 {[%emt 0:00:19]} 54. Qf5+ {[%emt 0:00:00]} Kc6 {[%emt 0:00:15]} 55. Qc8+ {[%emt 0:00:00]} Kb5 {[%emt 0:00:14]} 56. Qb7+ {[%emt 0:00:00]} Ka4 {[%emt 0:00:20]} (56... Kc5 $142 57. Kh3 Qd5 58. Qa7+ Kb5) 57. Qa7+ {[%emt 0:00:00]} Kb3 {[%emt 0:01:25] Black mates.} 58. Qxf7+ {[%emt 0:00:00]} Kc2 {[%emt 0:00:12]} 59. Qxh7+ {[%emt 0:16:00]} Kc1 {[%emt 0:00:02]} 60. Qc7+ {[%emt 0:00:00]} Qc2 {[%emt 0:01:58]} 61. Qf4+ {[%emt 0:00:00]} Kd1 {[%emt 0:00:15]} 62. Qf3+ {[%emt 0:00:00] [#]} Ke1 $1 {[%emt 0:00:17]} 63. Qh1+ {[%emt 0:00:00]} Ke2 {[%emt 0:00:21]} 64. Kg2 {[%emt 0:00:00] Weighted Error Value: White=1.04/Black=0.53} 0-1

[Event "67th Mexican-ch Open 2022"]
[Site "Chihuahua"]
[Date "2022.04.15"]
[Round "5.20"]
[White "Steinberg, Ellis"]
[Black "Quiroga Jaquez, Angel Ivan"]
[Result "0-1"]
[ECO "C76"]
[WhiteElo "1808"]
[BlackElo "2185"]
[Annotator "TA"]
[PlyCount "80"]
[EventDate "2022.04.12"]
[EventType "swiss"]
[EventCountry "MEX"]
[SourceTitle "playchess.com"]
[Source "ChessBase"]
[SourceQuality "1"]
[TimeControl "5400+30"]

{[%evp 17,80,40,43,31,83,16,33,13,23,0,8,-3,20,-21,-25,-70,-48,-59,-15,-45,39,-11,70,34,35,39,71,80,69,59,90,95,83,52,40,46,95,79,56,75,45,-18,52,46,44,-13,18,-141,-75,-162,-166,-198,-128,-754,-754,-719,-545,-1050,-1068,-1475,-1622,-1397,-1311,-29985,-29986]} 1. e4 {[%emt 0:00:02]} e5 {[%emt 0:05:09]} 2. Nf3 {[%emt 0:00:07]} Nc6 {[%emt 0:00:46]} 3. Bb5 {[%emt 0:00:06]} a6 {[%emt 0:00:36]} 4. Ba4 {[%emt 0:00:06]} Nf6 {[%emt 0:01:07]} 5. O-O {[%emt 0:00:09]} d6 {[%emt 0:00:49]} 6. Re1 {[%emt 0:00:28]} Bd7 {[%emt 0:03:16]} 7. c3 {[%emt 0:00:19]} g6 {[%emt 0:00:18]} 8. d4 {[%emt 0:00:36]} b5 {[%emt 0:04:19]} 9. Bc2 {[%emt 0:00:16]} Bg7 {[%emt 0:00:14]} 10. Nbd2 {[%emt 0:01:59] [#] C76: Ruy Lopez: Deferred Steinitz: 5 c3 Bd7 6 d4 g6.} h6 $146 {[%emt 0:00:54]} (10... O-O $14) ({Predecessor:} 10... O-O 11. Nf1 Re8 12. Ng3 a5 13. h3 a4 14. Be3 Qc8 15. Qd2 Na5 16. b3 c5 17. d5 h5 18. Bh6 Bh8 {½-½ (52) Maghsoodloo,P (2676)-Jumabayev,R (2654) Chess.com INT 2020}) 11. d5 {[%emt 0:00:42]} ({White should play} 11. dxe5 $16 Nxe5 12. Nxe5 dxe5 13. Nb3) 11... Ne7 $11 {[%emt 0:00:18]} 12. b3 {[%emt 0:00:32] White is slightly better.} Nh5 {[%emt 0:00:58]} 13. g3 {[%emt 0:05:24]} O-O {[%emt 0:03:01]} 14. Bb2 {[%emt 1:26:44]} Bg4 {[%emt 0:23:00]} 15. Bd3 {[%emt 0:00:00]} f5 {[%emt 0:04:18]} 16. Qc2 {[%emt 0:00:00]} f4 {[%emt 0:06:13] Hoping for ...fxg3.} 17. Be2 {[%emt 0:00:00]} fxg3 {[%emt 0:00:21]} (17... c6 $5 {[%cal Rd8b6]} 18. c4 cxd5 19. exd5 bxc4 20. bxc4 Bf5 $15) 18. hxg3 {[%emt 0:00:00]} Qd7 {[%emt 0:09:41]} (18... c6 $15 19. Nh2 Bh3) 19. Qd3 {[%emt 0:00:00]} (19. a4 $14) 19... Bf6 {[%emt 0:03:33]} (19... Bh3 $11) 20. Nh2 {[%emt 0:00:00]} (20. a4 {feels hotter.} Bh3 21. Nf1 bxa4 22. Rxa4 Rf7 23. Ne3) 20... Bxe2 {[%emt 0:00:14]} 21. Qxe2 {[%emt 0:00:00]} Bg5 {[%emt 0:00:17]} 22. Ndf3 {[%emt 0:00:00]} Bf6 {[%emt 0:11:46]} 23. Rac1 {[%emt 0:00:00]} Rf7 {[%emt 0:03:32]} 24. Rc2 {[%emt 0:00:00]} Raf8 {[%emt 0:00:46]} 25. Bc1 {[%emt 0:00:00]} Kh7 {[%emt 0:01:01]} 26. Kg2 {[%emt 0:00:00]} Kg7 {[%emt 0:02:16]} (26... Bg7 $14) 27. Be3 {[%emt 0:00:00]} Ng8 {[%emt 0:06:05]} 28. Rec1 {[%emt 0:00:00]} Bd8 {[%emt 0:00:14]} 29. Ng1 {[%emt 0:00:00]} ({White should try} 29. Qd3 $14) 29... Nhf6 {[%emt 0:01:42]} ({Better is} 29... Ngf6 $11) 30. f3 $14 {[%emt 0:00:00]} g5 {[%emt 0:02:14][%cal Og5g4]} 31. g4 {[%emt 0:00:00]} (31. Nh3 $14) 31... h5 {[%emt 0:00:19]} 32. Bxg5 $2 {[%emt 0:00:00]} ({White has to play} 32. Nh3 $11 Nh7 33. gxh5) 32... Nxd5 {[%emt 0:00:22]} (32... hxg4 $142 $1 {[%cal Og4g3] White must now prevent ...g3!} 33. Bxf6+ Nxf6 34. fxg4 (34. Qe3 $2 Kg8 $19) 34... Kh8) 33. Qd2 {[%emt 0:00:00]} (33. Bd2 $17 Nf4+ 34. Bxf4 Rxf4 35. Kh1) 33... Ndf6 $1 $19 {[%emt 0:00:50][%cal Rh5g4]} ({And not} 33... Nf4+ 34. Bxf4 Rxf4 35. Nh3 $17) 34. gxh5 {[%emt 0:00:00]} Nxh5 {[%emt 0:00:10] The board is on fire.} (34... Kh8 $1 $19 35. h6 Nxe4 $1 {[%mdl 512]} 36. fxe4 Rf2+ 37. Qxf2 Rxf2+ 38. Rxf2 Bxg5) 35. Nh3 $2 {[%emt 0:00:05][%mdl 8192] [#] This move loses the game for White.} (35. Qe3 $17) 35... Rxf3 $3 {[%emt 0:01:09][%mdl 512]} 36. Nxf3 {[%emt 0:03:39]} Qg4+ {[%emt 0:01:21][%mdl 64] Deflection} 37. Kh1 {[%emt 0:01:12] Threatens to win with Qg2.} Rxf3 {[%emt 0:00:37]} 38. Qg2 {[%emt 0:01:04]} Rxh3+ {[%emt 0:00:20]} 39. Kg1 {[%emt 0:00:10] [#]} Rg3 $1 {[%emt 0:00:17]} 40. Bxd8 {[%emt 0:00:38]} (40. Qxg3 Nxg3) 40... Nf4 {[%emt 0:00:14][%mdl 64] Pin.  Weighted Error Value: White=0.99/Black=0.27 (precise)} 0-1

[Event "67th Mexican-ch Open 2022"]
[Site "Chihuahua"]
[Date "2022.04.15"]
[Round "5.21"]
[White "Pena Davalos, David"]
[Black "Palma Villanueva, Miguel Ta"]
[Result "0-1"]
[ECO "A48"]
[WhiteElo "1761"]
[BlackElo "2210"]
[Annotator "TA"]
[PlyCount "130"]
[EventDate "2022.04.12"]
[EventType "swiss"]
[EventCountry "MEX"]
[SourceTitle "playchess.com"]
[Source "ChessBase"]
[SourceQuality "1"]
[TimeControl "5400+30"]

{[%evp 10,130,8,-13,50,35,55,45,58,37,46,47,49,24,24,32,47,27,31,30,60,48,58,43,25,16,25,25,60,5,71,72,71,23,17,-15,-13,-12,-19,-30,-19,-24,10,13,7,-21,-25,-35,0,0,2,0,0,-26,-11,-104,-113,-113,0,0,14,14,14,14,14,14,14,14,14,-385,-383,-368,-368,-372,-369,-354,-252,-226,-212,-350,-307,-1389,-1328,-5813,-5297,-6382,-6386,-6079,-5725,-2660,-5073,-5293,-5214,-4875,-4133,-2561,-2473,-2136,-2069,-1925,-1444,-5493,-5897,-29973,-29973,-29975,-29976,-29978,-29978,-29978,-29978,-29979,-29976,-29980,-29981,-29981,-29982,-29982,-29983,-29982,-29981,-29978,-5222]} 1. d4 {[%emt 1:31:00]} Nf6 {[%emt 0:03:07]} 2. Nf3 {[%emt 0:00:00]} g6 {[%emt 0:00:05]} 3. Bg5 {[%emt 0:00:00]} Bg7 {[%emt 0:00:05]} 4. Nbd2 {[%emt 0:00:00]} d6 {[%emt 0:01:47]} 5. e4 {[%emt 0:00:00]} O-O {[%emt 0:00:50]} 6. Be2 {[%emt 0:00:00]} Bg4 {[%emt 0:05:11] A48: 1 d4 Nf6 2 Nf3 g6: Torre, London and Colle Systems.} (6... h6 $11 7. Be3 Ng4) 7. O-O {[%emt 0:00:00]} c6 {[%emt 0:06:04]} 8. c3 {[%emt 0:00:00]} Qc7 {[%emt 0:02:10] White is slightly better.} 9. Qc2 {[%emt 0:00:00]} Nbd7 {[%emt 0:02:51]} 10. h3 {[%emt 0:00:00]} Bxf3 {[%emt 0:00:49]} 11. Bxf3 {[%emt 0:00:00]} Rfe8 {[%emt 0:04:40] [#]} 12. Rad1 $146 {[%emt 0:00:00]} ({Predecessor:} 12. Rfe1 c5 13. d5 b5 14. Be2 Rab8 15. Rac1 a6 16. a3 c4 17. Be3 Nc5 18. f3 {1-0 (44) Stadler,H (1740)-Wimmer,J (1788) Germany 2006}) 12... Rac8 {[%emt 1:08:51]} 13. Rfe1 {[%emt 0:00:00]} b5 {[%emt 0:00:00]} 14. Be2 {[%emt 0:00:00]} Nb6 {[%emt 0:00:00]} 15. Be3 {[%emt 0:00:00]} a6 {[%emt 0:00:00]} 16. f4 {[%emt 0:00:00]} Nfd7 {[%emt 0:00:00]} 17. Nf3 {[%emt 0:00:00]} e6 {[%emt 0:00:00]} 18. Bd3 {[%emt 0:00:00]} f5 {[%emt 0:00:00]} 19. Ng5 {[%emt 0:00:00]} (19. exf5 $14 exf5 20. g4) 19... h6 {[%emt 0:00:00]} (19... Nf6 $11) 20. Nf3 $16 {[%emt 0:00:00][%cal Re4f5]} Nf6 {[%emt 0:00:00]} 21. e5 {[%emt 0:00:00]} (21. Bc1 $16) 21... Nfd5 $11 {[%emt 0:00:00]} 22. exd6 {[%emt 0:00:00]} Qxd6 {[%emt 0:00:00]} 23. Ne5 {[%emt 0:00:00]} Nxe3 {[%emt 0:00:00]} 24. Rxe3 {[%emt 0:00:00]} Nd5 {[%emt 0:00:00][%csl LRe3,LRf4]} 25. Rf3 {[%emt 0:00:00]} Bxe5 {[%emt 0:00:00]} 26. fxe5 {[%emt 0:00:00]} Qe7 {[%emt 0:00:00]} 27. g4 {[%emt 0:00:00]} Qg5 {[%emt 0:00:00]} 28. Qd2 {[%emt 0:03:13] Against Ne3} Qxd2 {[%emt 0:00:00]} 29. Rxd2 {[%emt 0:00:02]} Kf7 {[%emt 0:00:00]} 30. gxf5 {[%emt 0:00:42]} gxf5 {[%emt 0:00:00]} 31. Rg2 {[%emt 0:02:25]} Rg8 {[%emt 0:00:00]} 32. Rfg3 {[%emt 0:00:40]} (32. Rxg8 $11 {remains equal.} Kxg8 33. Kf2) 32... Rxg3 $17 {[%emt 0:00:00]} 33. Rxg3 {[%emt 0:00:02][%mdl 4096] Endgame KRB-KRN} Nb6 {[%emt 0:00:00]} ({Better is} 33... c5 $17 {White must now prevent ...cxd4.} 34. Rf3 cxd4 35. cxd4 Nb4) 34. Be2 $11 {[%emt 0:01:29]} Rg8 {[%emt 0:01:55]} 35. Bh5+ {[%emt 0:00:19]} Kf8 {[%emt 0:00:01]} 36. Rxg8+ {[%emt 0:00:15]} Kxg8 {[%emt 0:00:02] KB-KN} 37. Be8 {[%emt 0:00:12]} Na4 $1 {[%emt 0:00:19]} 38. Bxc6 {[%emt 0:01:31][%cal Oc3c4] [#] And now c4! would win.} Nxb2 {[%emt 0:00:06] Threatens to win with ...Nd1.} 39. Kf2 $2 {[%emt 0:01:07][%mdl 8192] White does not recover from this.} (39. Bb7 $11 {and White has nothing to worry.} Na4 40. Bxa6 Nxc3 41. Kf2) 39... Nd1+ $19 {[%emt 0:00:18]} 40. Kf3 {[%emt 0:02:15]} Nxc3 {[%emt 0:00:07]} 41. a3 {[%emt 0:00:09]} Kf7 {[%emt 0:03:04] Strongly threatening ...Nb1.} 42. Ke3 {[%emt 0:02:08]} Ke7 {[%emt 0:01:16]} 43. Kd3 {[%emt 0:00:18]} Nd5 {[%emt 0:00:12]} 44. h4 {[%emt 0:01:19]} (44. Kc2 $142) 44... Kd8 {[%emt 0:00:52]} 45. Bb7 $2 {[%emt 0:01:47]} (45. Kd2) 45... a5 {[%emt 0:00:28]} 46. Bc6 {[%emt 0:00:36] [#]} b4 $1 {[%emt 0:00:55]} 47. Kc2 {[%emt 0:01:15]} bxa3 {[%emt 0:00:19] ( -> ...Nb4+)} 48. Bb5 {[%emt 0:00:42]} Ne3+ {[%emt 0:02:03]} 49. Kb3 {[%emt 0:00:33]} a2 {[%emt 0:00:04]} 50. Kxa2 {[%emt 0:00:16]} Nc2 {[%emt 0:00:01]} 51. d5 {[%emt 0:01:10]} Nb4+ {[%emt 0:00:05]} 52. Kb3 {[%emt 0:00:18]} Nxd5 {[%emt 0:00:04]} 53. Bc4 {[%emt 0:00:19]} Ke7 {[%emt 0:00:08]} 54. Bd3 {[%emt 0:00:45]} Nf4 {[%emt 0:00:16]} 55. Bf1 {[%emt 0:00:10]} Ng6 {[%emt 0:00:04][%csl LRe5,LRh4]} 56. h5 {[%emt 0:00:17]} Nxe5 {[%emt 0:00:04] Black mates.} 57. Ka4 {[%emt 0:00:05]} Kd6 {[%emt 0:01:00]} 58. Kxa5 {[%emt 0:00:10]} Kc5 {[%emt 0:00:05]} 59. Ka4 {[%emt 0:00:16]} Kd4 {[%emt 0:00:44]} 60. Kb3 {[%emt 0:00:14]} Ke3 {[%emt 0:00:11]} 61. Kc2 {[%emt 0:00:18]} Nf3 {[%emt 0:00:44]} 62. Kd1 {[%emt 0:00:12]} e5 {[%emt 0:00:07]} 63. Bh3 {[%emt 0:00:24]} f4 {[%emt 0:00:15]} 64. Bf5 {[%emt 0:01:08]} Nd4 {[%emt 0:00:21]} 65. Bg4 {[%emt 0:00:13]} Kf2 {[%emt 0:00:17] Weighted Error Value: White=0.89/Black=0.21 (precise)} 0-1